[Event "Czech Open-Rapid 2022"]
[Site "Pardubice"]
[Date "2022.07.21"]
[Round "6.6"]
[White "Vykouk, Jan"]
[Black "Gressmann, Moritz"]
[Result "0-1"]
[ECO "C50"]
[WhiteElo "2476"]
[BlackElo "2114"]
[Annotator "TA"]
[PlyCount "104"]
[EventDate "2022.07.20"]
[EventType "swiss"]
[EventCountry "CZE"]
[SourceTitle "playchess.com"]
[Source "ChessBase"]
[SourceQuality "1"]
[TimeControl "1200+10"]

{[%evp 18,104,10,10,20,0,-15,-8,-9,-7,-8,-31,-35,-35,-35,-27,-43,-90,-76,-74,-58,-59,-48,-70,-81,-78,-18,-27,-18,-18,0,0,0,0,0,0,0,-118,-122,-112,-121,-169,-123,-119,-119,-129,-81,-79,-60,-64,-67,-73,-47,-50,0,-270,-261,-835,-843,-813,-810,-810,-801,-790,-781,-837,-821,-706,-599,-1478,-1350,-3611,-3400,-2313,-2021,-1947,-1242,-5031,-3853,-2133,-1702,-29979,-29980,-29982,-29978,-29978,-29979,-29977,-29978]} 1. e4 {[%emt 0:00:02]} e5 {[%emt 0:00:00]} 2. Nf3 {[%emt 0:00:01]} Nc6 {[%emt 0:00:01]} 3. Bc4 {[%emt 0:00:01]} Nf6 {[%emt 0:00:04]} 4. d3 {[%emt 0:00:01]} Bc5 {[%emt 0:00:02]} 5. Nbd2 {[%emt 0:00:06]} d6 {[%emt 0:00:02]} 6. c3 {[%emt 0:00:04]} a6 {[%emt 0:00:02]} 7. Bb3 {[%emt 0:00:18]} Ba7 {[%emt 0:00:09]} 8. h3 {[%emt 0:00:09]} O-O {[%emt 0:00:09]} 9. O-O {[%emt 0:01:26]} h6 {[%emt 0:00:08]} 10. Re1 {[%emt 0:00:09]} Nh5 {[%emt 0:00:18] 10...Nh5 has lost popularity. C54: Giuoco Piano: 4 c3 Nf6, main lines with 5 d4 and 5 d3.} 11. d4 {[%emt 0:00:26]} Qf6 {[%emt 0:01:24][%cal Re5d4]} 12. Nxe5 {[%emt 0:04:00]} dxe5 {[%emt 0:00:35] The position is equal.} (12... Nxe5 13. Qxh5 Nd3 14. Rf1 $16) 13. Qxh5 {[%emt 0:00:03]} exd4 {[%emt 0:00:05] [#]} 14. e5 $146 {[%emt 0:00:01]} ({Predecessor:} 14. Nf3 dxc3 15. bxc3 Qxc3 16. Bxh6 gxh6 17. e5 Qd3 18. Rad1 Qh7 19. e6 fxe6 20. Bxe6+ {½-½ (68) Kosakowski,J (2442)-Coto Mederos,M (2348) Chess.com INT 2022}) 14... Qf5 {[%emt 0:00:21]} 15. Qxf5 {[%emt 0:00:27]} Bxf5 {[%emt 0:00:01][%cal Bc8f5,Bf5e6,Be6d5][%mdl 32]} 16. g4 {[%emt 0:00:09]} Be6 {[%emt 0:00:37]} 17. Bc2 {[%emt 0:00:39]} (17. Kg2 $15 {feels stronger.}) 17... Rad8 {[%emt 0:03:05]} 18. Kg2 {[%emt 0:00:02]} Bd5+ {[%emt 0:02:02]} 19. Kg3 {[%emt 0:00:02]} f6 {[%emt 0:01:25]} 20. e6 {[%emt 0:02:06] Threatens to win with e7.} Rfe8 {[%emt 0:01:45]} 21. Bf5 {[%emt 0:00:07] Black must now prevent c4.} Rd6 {[%emt 0:03:00]} (21... dxc3 $17 22. bxc3 Ne7) 22. Ne4 $11 {[%emt 0:00:02]} Bxe4 {[%emt 0:00:18]} 23. Bxe4 {[%emt 0:00:46]} (23. Rxe4 Ne7 24. Rf4 g6 $15) 23... Kh8 $36 {[%emt 0:00:27][%mdl 2048] Black has good play.} (23... Rdxe6 24. Bd5 Nd8 25. f4 $16) 24. Bf5 {[%emt 0:01:25]} Ne7 {[%emt 0:00:16]} 25. Bf4 {[%emt 0:00:34]} Nxf5+ {[%emt 0:00:20]} 26. gxf5 Rd5 27. Bxc7 {[%emt 0:00:55]} (27. Kg4 $11 {remains equal.}) 27... dxc3 $1 $17 {[%emt 0:00:43]} 28. bxc3 {[%emt 0:02:16]} Rxf5 {[%emt 0:00:04]} 29. f3 {[%emt 0:01:42]} (29. Re2 $17) 29... Rc5 {[%emt 0:00:37]} (29... Rg5+ $1 $19 30. Kh2 Rc5) 30. Bf4 {[%emt 0:00:02]} Rc6 {[%emt 0:00:17]} ({Weaker is} 30... Rxc3 31. Rad1 $15) 31. Rad1 {[%emt 0:00:52] [#]} Rcxe6 {[%emt 0:01:09]} (31... Rexe6 32. Rxe6 Rxe6 33. Rd7 $15) ({Better is} 31... g5 $1 {[%cal Rg5f4]} 32. Bc1 (32. Bd6 $2 Rxd6 33. Kg4 Bc5 $19) 32... Kg7 33. Rd7+ Kg6 34. Rxb7 Bb8+ 35. Kf2 Rxc3) 32. Rxe6 {[%emt 0:00:06]} Rxe6 {[%emt 0:00:01][%mdl 4096] Endgame KRB-KRB} 33. Rd7 $1 {[%emt 0:00:01]} Re2 {[%emt 0:00:37]} 34. Rxb7 {[%emt 0:00:09]} Bf2+ {[%emt 0:00:07]} 35. Kg4 {[%emt 0:00:18]} Rxa2 {[%emt 0:00:58]} (35... Be1 $15 36. c4 g6) 36. Kh5 $2 {[%emt 0:00:02][%mdl 8192] [#] White is on the road to losing.} (36. Kf5 $1 $11 {and White stays safe.} Kh7 37. Bd6) 36... Kh7 $1 $19 {[%emt 0:00:11]} 37. Bd6 $2 {[%emt 0:00:33]} (37. Kg4) 37... Ra5+ {[%emt 0:00:09]} 38. Kg4 {[%emt 0:00:01]} Rg5+ {[%emt 0:00:02]} 39. Kf4 {[%emt 0:00:12]} Bg3+ {[%emt 0:00:00]} 40. Ke4 {[%emt 0:00:01]} Bxd6 {[%emt 0:00:02] KRB-KR} 41. Rb6 {[%emt 0:00:11]} Re5+ {[%emt 0:00:39]} 42. Kd3 {[%emt 0:00:01]} Bc7 {[%emt 0:00:38]} 43. Rxa6 {[%emt 0:00:02]} Rh5 {[%emt 0:00:02]} 44. c4 {[%emt 0:00:12]} Rxh3 {[%emt 0:00:02]} 45. Ke4 {[%emt 0:00:01]} Rh1 {[%emt 0:00:08]} 46. c5 {[%emt 0:00:03]} Rc1 {[%emt 0:00:15]} 47. Kd5 {[%emt 0:00:06]} h5 {[%emt 0:00:10][%cal Bh6h5,Bh5h4][%mdl 32]} 48. c6 {[%emt 0:00:11]} Kg6 {[%emt 0:00:38] ( -> ...h4)} 49. Ke6 {[%emt 0:00:09]} h4 {[%emt 0:00:07] Black mates.} 50. Kd7 {[%emt 0:00:05]} Bf4 {[%emt 0:00:29]} 51. Ra4 {[%emt 0:00:04]} Kg5 {[%emt 0:00:15]} 52. Ra5+ {[%emt 0:00:05]} f5 {[%emt 0:00:02] Weighted Error Value: White=0.81/Black=0.19 (very precise)} 0-1

[Event "Czech Open-Rapid 2022"]
[Site "Pardubice"]
[Date "2022.07.21"]
[Round "6.7"]
[White "Goroshkov, Maksym"]
[Black "Luch, Michal"]
[Result "1/2-1/2"]
[ECO "B22"]
[WhiteElo "2240"]
[BlackElo "2375"]
[Annotator "TA"]
[PlyCount "125"]
[EventDate "2022.07.20"]
[EventType "swiss"]
[EventCountry "CZE"]
[SourceTitle "playchess.com"]
[Source "ChessBase"]
[SourceQuality "1"]
[TimeControl "1200+10"]

{[%evp 15,125,19,10,14,32,0,-22,-36,1,-75,-62,-76,-22,-44,-53,-61,-31,-27,0,0,0,0,0,-10,-10,-12,2,0,-3,-6,0,0,0,-18,33,-8,9,9,5,14,25,0,0,0,40,45,74,48,110,24,77,37,52,0,0,0,0,0,0,0,0,0,0,0,0,0,0,0,0,0,0,0,0,0,0,0,0,0,0,0,0,0,0,0,0,0,0,0,0,0,0,0,0,0,0,0,0,0,0,0,0,0,0,0,0,0,0,0,0,0,0,-27999]} 1. e4 {[%emt 0:00:02][%cal Be2e4,Be4e5][%mdl 32]} c5 {[%emt 0:00:01][%cal Bc7c5,Bc5c4][%mdl 32]} 2. c3 {[%emt 0:00:01]} Nf6 {[%emt 0:00:01]} 3. e5 {[%emt 0:00:01]} Nd5 {[%emt 0:00:01]} 4. Bc4 {[%emt 0:00:00]} Qc7 {[%emt 0:02:20]} 5. Nf3 {[%emt 0:00:02]} Nb6 {[%emt 0:00:04]} 6. Bb3 {[%emt 0:00:01]} c4 {[%emt 0:02:54]} 7. Bc2 {[%emt 0:00:01]} Nc6 {[%emt 0:00:22][%cal Bb8c6,Bc6e5,Be5d3][%mdl 32]} 8. Qe2 {[%emt 0:00:02]} g5 {[%emt 0:00:39]} 9. h3 {[%emt 0:00:14] B22: Sicilian: 2 c3.} Bg7 {[%emt 0:00:17][%cal Rc6e5]} 10. d4 {[%emt 0:00:21]} (10. O-O $14) 10... cxd3 $1 $11 {[%emt 0:00:06]} 11. Bxd3 {[%emt 0:00:01]} (11. Qxd3 {with more complications.} Nxe5 12. Nxe5 Qxe5+ 13. Be3) 11... Nxe5 {[%emt 0:00:15]} 12. Nxg5 {[%emt 0:00:08]} (12. Nxe5 $11 {keeps the balance.} Qxe5 13. Qxe5 Bxe5 14. Bxg5) 12... Nxd3+ $17 {[%emt 0:00:50]} 13. Qxd3 {[%emt 0:00:02] [#]} Qc4 $146 {[%emt 0:03:35]} (13... Qe5+ $17 14. Be3 Qd5 15. Qxd5 Nxd5) ({Predecessor:} 13... h6 14. Nf3 d6 15. Na3 Bd7 16. Nb5 Qc5 17. Nbd4 O-O-O 18. Be3 Qd5 19. c4 Qa5+ {½-½ (76) Martynov,P (1992)-Mammadov,Z (2180) Alushta 2009}) 14. Qxc4 {[%emt 0:00:35]} Nxc4 {[%emt 0:00:01]} 15. Nd2 {[%emt 0:00:02]} Nxd2 {[%emt 0:03:08]} 16. Bxd2 {[%emt 0:00:02][%cal Bc1d2,Bd2e3,Be3d4][%mdl 32]} d5 {[%emt 0:00:38]} 17. O-O-O {[%emt 0:00:22]} h6 {[%emt 0:01:01]} 18. Nf3 {[%emt 0:00:01]} Bf5 {[%emt 0:00:01]} 19. Be3 {[%emt 0:00:11]} Be4 {[%emt 0:01:35]} 20. Nd2 {[%emt 0:00:01]} Bh7 {[%emt 0:00:12][%cal Od5d4] A strong pair of Bishops.} 21. Nb3 {[%emt 0:00:06] Inhibits d4.} e6 {[%emt 0:00:23]} 22. Rhe1 {[%emt 0:00:22]} b6 {[%emt 0:02:57]} 23. Bd4 {[%emt 0:00:04]} Rg8 {[%emt 0:00:01]} 24. g4 {[%emt 0:00:07] Black must now prevent Bxg7.} O-O-O {[%emt 0:00:17]} ({Better is} 24... Bf8 $11) 25. f4 {[%emt 0:00:24]} Be4 {[%emt 0:00:52]} 26. Bxg7 {[%emt 0:00:36]} Rxg7 {[%emt 0:00:01]} 27. Nd4 {[%emt 0:00:02]} Rh8 {[%emt 0:01:23]} 28. Re3 {[%emt 0:00:19][%cal Oc3c4]} h5 29. g5 h4 {[%emt 0:00:14][%cal Oe6e5]} (29... e5 $5 30. fxe5 Rxg5 $14) 30. c4 {[%emt 0:00:33]} Kb7 {[%emt 0:00:17]} 31. b3 {[%emt 0:00:11]} Rc8 {[%emt 0:00:21] [#]} ({Black should play} 31... Rf8 $14) 32. Kb2 {[%emt 0:00:01]} (32. Nb5 $1 $16 {[%cal Rb5d6]}) 32... a6 {[%emt 0:00:29]} (32... Rgg8 $11) 33. Ne2 {[%emt 0:00:11]} f6 {[%emt 0:00:09]} 34. Nd4 {[%emt 0:00:58]} (34. gxf6 $14 Rg2 35. Ka3) 34... fxg5 $11 {[%emt 0:00:06] The position is equal.} 35. Nxe6 {[%emt 0:00:02]} gxf4 {[%emt 0:00:06]} 36. Nxf4 {[%emt 0:00:03]} Rg3 {[%emt 0:00:13]} 37. Rde1 {[%emt 0:00:07]} Rf8 {[%emt 0:00:14]} 38. Nxd5 {[%emt 0:00:02]} Rf2+ {[%emt 0:00:09]} 39. Ka3 {[%emt 0:00:02]} Bxd5 {[%emt 0:00:13]} 40. cxd5 {[%emt 0:00:04] [#] Re7+ is the strong threat.} Rxe3 {[%emt 0:00:10]} 41. Rxe3 {[%emt 0:00:00][%mdl 4096] Endgame KR-KR} Rh2 {[%emt 0:00:02]} 42. Rc3 {[%emt 0:00:38]} Rd2 {[%emt 0:00:14]} 43. Rc4 {[%emt 0:00:02]} a5 {[%emt 0:00:07]} 44. Rxh4 {[%emt 0:00:03]} b5 {[%emt 0:00:06]} 45. Rh6 {[%emt 0:01:25]} Rxd5 {[%emt 0:00:11]} 46. Kb2 {[%emt 0:00:16]} Rd2+ {[%emt 0:00:09]} 47. Kb1 {[%emt 0:00:01]} b4 {[%emt 0:00:11]} 48. h4 {[%emt 0:00:01]} Rh2 {[%emt 0:00:06]} 49. h5 {[%emt 0:00:02]} Rh1+ {[%emt 0:00:04]} 50. Kc2 {[%emt 0:00:31]} Rh2+ {[%emt 0:00:01]} 51. Kd3 {[%emt 0:00:40]} Rxa2 {[%emt 0:00:01]} 52. Kc4 {[%emt 0:00:01]} Rg2 {[%emt 0:00:01]} 53. Rg6 {[%emt 0:00:07]} Rh2 {[%emt 0:00:14]} 54. h6 {[%emt 0:00:15]} Rh4+ {[%emt 0:00:39]} 55. Kb5 {[%emt 0:00:06]} Rh5+ {[%emt 0:00:01]} 56. Ka4 {[%emt 0:00:25]} Ka7 {[%emt 0:00:00]} 57. Rg7+ {[%emt 0:00:25]} Kb6 {[%emt 0:00:05]} 58. Rg6+ {[%emt 0:00:01]} Kb7 {[%emt 0:00:09]} 59. Rd6 {[%emt 0:00:17]} Ka7 {[%emt 0:00:05]} 60. Rf6 {[%emt 0:00:53]} Kb7 {[%emt 0:00:02]} 61. Rg6 {[%emt 0:00:11]} Ka7 {[%emt 0:00:02]} 62. h7 Rxh7 {[%emt 0:01:04]} 63. Rg7+ $2 {[%emt 0:00:00][%mdl 40960] Weighted Error Value: White=0.14 (very precise) /Black=0.12 (very precise) . An unexpected result.} 1/2-1/2

[Event "Czech Open-Rapid 2022"]
[Site "Pardubice"]
[Date "2022.07.21"]
[Round "6.8"]
[White "Freisler, Pavel"]
[Black "Neuman, Petr"]
[Result "0-1"]
[ECO "A41"]
[WhiteElo "2256"]
[BlackElo "2378"]
[Annotator "TA"]
[PlyCount "86"]
[EventDate "2022.07.20"]
[EventType "swiss"]
[EventCountry "CZE"]
[SourceTitle "playchess.com"]
[Source "ChessBase"]
[SourceQuality "1"]
[TimeControl "1200+10"]

{[%evp 12,86,-20,-25,9,6,49,25,89,53,66,61,53,69,72,56,61,61,69,55,61,58,83,83,86,50,59,52,107,56,58,38,43,29,28,0,0,0,0,0,5,0,0,0,0,-475,-470,-383,-374,-338,-317,-527,-462,-724,-423,-529,-520,-509,-483,-672,-657,-2096,-691,-2198,-1845,-3024,-1746,-1591,-1358,-2364,-2212,-29978,-29979,-29979,-29980,-29993,-29994]} 1. d4 {[%emt 0:00:04]} d6 {[%emt 0:00:02]} 2. c4 {[%emt 0:00:55]} e5 {[%emt 0:00:01]} 3. Nc3 {[%emt 0:00:16]} exd4 {[%emt 0:00:02]} 4. Qxd4 {[%emt 0:00:01]} Nc6 {[%emt 0:00:03]} 5. Qd2 {[%emt 0:00:15]} Nf6 {[%emt 0:00:02]} 6. g3 {[%emt 0:00:08]} Be6 {[%emt 0:00:04]} 7. Nd5 {[%emt 0:00:26]} Ne5 {[%emt 0:03:11] A21: English Opening: 1...e5 2 Nc3.} 8. b3 {[%emt 0:00:07] [#]} a5 $146 {[%emt 0:00:02]} ({Predecessor:} 8... Ne4 9. Qd4 f5 10. f3 c5 11. Qb2 Bxd5 12. cxd5 Nf6 13. Qd2 g6 14. Nh3 Qe7 15. Kf2 h5 16. Nf4 h4 {0-1 (32) Kovalenko,I (2674)-Grischuk,A (2742) Chess.com INT 2022}) 9. Bb2 {[%emt 0:00:17]} (9. Bg2 $5 {[%cal Rd5f6]}) 9... a4 {[%emt 0:00:04]} (9... Be7 $11 {keeps the balance.}) 10. Bg2 {[%emt 0:00:11]} axb3 {[%emt 0:01:26]} 11. axb3 {[%emt 0:00:01]} Rxa1+ {[%emt 0:00:09]} 12. Bxa1 {[%emt 0:00:02]} c6 {[%emt 0:00:08]} 13. Nxf6+ {[%emt 0:01:18]} Qxf6 {[%emt 0:00:02]} 14. Bc3 {[%emt 0:00:20]} Qd8 {[%emt 0:00:50]} 15. Nh3 {[%emt 0:01:05][%cal Bg1h3,Bh3f4,Bf4e6][%mdl 32]} f6 {[%emt 0:01:32] Inhibits Ng5.} 16. Nf4 {[%emt 0:00:34]} Bf7 {[%emt 0:00:32]} 17. O-O {[%emt 0:00:33]} Be7 {[%emt 0:00:05]} 18. Ra1 {[%emt 0:00:09]} O-O {[%emt 0:00:02]} 19. Bh3 {[%emt 0:00:29]} Qb6 {[%emt 0:00:09]} ({Better is} 19... Re8 $14) 20. Qc2 {[%emt 0:01:00]} (20. Ne6 $16 Bxe6 21. Bxe6+ Kh8 22. Qd1) 20... Re8 {[%emt 0:00:21]} 21. Ne6 {[%emt 0:01:06]} Bf8 {[%emt 0:00:54]} 22. Bd4 {[%emt 0:03:23]} c5 {[%emt 0:00:48][%cal Bc6c5,Bc5d4,Bd4d3][%mdl 32]} 23. Nxf8 {[%emt 0:01:59]} (23. Bxe5 $5 {[%cal Re6f8]} Bg6 {[#]} 24. Qa2 $1 dxe5 25. Nxf8 Kxf8 26. Qa5 Qxa5 27. Rxa5 $11) 23... cxd4 {[%emt 0:00:20]} 24. Nd7 {[%emt 0:00:06]} (24. Nxh7 $2 d3 25. Nxf6+ gxf6 26. exd3 Nf3+ 27. Kh1 Qd4 $19) 24... Qc7 {[%emt 0:00:24]} 25. Nxe5 {[%emt 0:00:13]} dxe5 {[%emt 0:00:01]} 26. c5 {[%emt 0:00:29]} e4 {[%emt 0:00:37]} 27. b4 {[%emt 0:00:36]} Qe5 {[%emt 0:00:30][%cal Od4d3] Strongly threatening ...d3!} 28. b5 $2 {[%emt 0:01:44][%mdl 8192] Black keeps a firm grip on the game.} (28. Rd1 $11 {and White is okay.}) 28... d3 $1 $19 {[%emt 0:00:16]} 29. Qb1 {[%emt 0:01:28]} dxe2 {[%emt 0:02:36]} 30. Bd7 Rb8 {[%emt 0:01:23]} ({Not} 30... Qxc5 31. Bxe8 Bxe8 32. Qxe4 $16) 31. c6 $2 {[%emt 0:00:36]} (31. Bg4 {might work better.} Bc4 32. Qe1) 31... bxc6 {[%emt 0:00:08]} 32. Bxc6 {[%emt 0:00:02]} (32. Bg4 $142 Bc4 33. b6) 32... e3 {[%emt 0:00:09] And now ...Rd8 would win.} 33. f4 {[%emt 0:00:45]} Qd4 {[%emt 0:00:05]} 34. Qe1 {[%emt 0:01:09]} Bc4 {[%emt 0:00:12]} 35. Rc1 {[%emt 0:01:34]} Qd2 {[%emt 0:00:13]} 36. Kg2 {[%emt 0:00:04] [#]} g5 $1 {[%emt 0:00:49]} 37. Kf3 {[%emt 0:00:28] [#]} (37. Bf3 gxf4) 37... h5 $1 {[%emt 0:01:07]} 38. h3 {[%emt 0:00:01] [#]} (38. g4 Bd5+) 38... Kg7 $1 {[%emt 0:02:41] White must now prevent ...Bb3.} 39. Ra1 {[%emt 0:00:11]} (39. h4 Rc8) 39... Kh6 {[%emt 0:00:32] aiming for ...Bd5+.} 40. Be4 {[%emt 0:00:55]} Re8 {[%emt 0:00:48][%cal Oe8e4] ( -> ...Rxe4!)} 41. fxg5+ {[%emt 0:01:03]} Kxg5 {[%emt 0:00:11] Black mates.} 42. h4+ {[%emt 0:00:06]} Kh6 {[%emt 0:00:01]} 43. Qb1 {[%emt 0:00:45]} Bd5 {[%emt 0:00:50] Weighted Error Value: White=1.02/Black=0.58} 0-1

[Event "Czech Open-Rapid 2022"]
[Site "Pardubice"]
[Date "2022.07.21"]
[Round "6.9"]
[White "Dobrowolski, Piotr"]
[Black "Jonsson, Gauti Pall"]
[Result "1-0"]
[ECO "B01"]
[WhiteElo "2423"]
[BlackElo "2071"]
[Annotator "TA"]
[PlyCount "91"]
[EventDate "2022.07.20"]
[EventType "swiss"]
[EventCountry "CZE"]
[SourceTitle "playchess.com"]
[Source "ChessBase"]
[SourceQuality "1"]
[TimeControl "1200+10"]

{[%evp 9,91,36,36,22,33,26,21,16,14,43,110,98,131,121,117,38,39,29,37,37,41,33,45,0,67,52,114,80,164,157,154,110,110,95,94,69,98,92,92,101,91,83,86,66,57,73,73,73,73,73,73,66,187,183,265,257,332,187,753,117,111,118,288,287,250,260,1069,1063,957,904,998,981,1095,997,1004,787,2933,2886,29975,29977,5219,2074,29989,29990]} 1. e4 {[%emt 0:00:02] ChessBase II} d5 {[%emt 0:00:06]} 2. exd5 {[%emt 0:00:02]} Qxd5 {[%emt 0:00:02]} 3. Nc3 {[%emt 0:00:03]} Qd8 {[%emt 0:00:09]} 4. Bc4 {[%emt 0:00:15]} Nf6 {[%emt 0:00:14]} 5. Nf3 {[%emt 0:00:09]} a6 {[%emt 0:00:55]} 6. d4 {[%emt 0:01:01] B01: Scandinavian Defence.} b5 {[%emt 0:00:21]} 7. Bb3 {[%emt 0:00:07]} c5 {[%emt 0:01:01]} 8. a4 {[%emt 0:01:27] The position is equal.} c4 {[%emt 0:01:30]} 9. Ba2 {[%emt 0:00:09] [#]} Bd7 $146 {[%emt 0:01:43]} (9... Qb6 $14) ({Predecessor:} 9... Qb6 10. Ne5 e6 11. O-O Bb7 12. Be3 Nbd7 13. d5 Bc5 14. Nxd7 Nxd7 15. dxe6 fxe6 {1-0 (60) Getz,N (2333)-Djukic,N (2494) Aix les Bains 2011 CBM 142 Extra [ChessBase II]}) 10. Ne5 {[%emt 0:01:03]} e6 {[%emt 0:00:58]} 11. Qf3 {[%emt 0:02:58] Against Nc6} Ra7 12. Bf4 {[%emt 0:04:24]} ({White should try} 12. O-O $16) 12... Bb4 $14 {[%emt 0:01:02]} 13. O-O {aiming for axb5.} O-O {[%emt 0:01:35]} 14. Bg5 {[%emt 0:02:43]} h6 {[%emt 0:01:22]} 15. Bh4 {[%emt 0:00:29]} Be7 {[%emt 0:00:42]} 16. Rad1 {[%emt 0:00:11]} Ne8 {[%emt 0:01:15]} (16... b4 $11 17. Bxf6 Bxf6) 17. Bg3 {[%emt 0:00:32] White is much more active.} Bd6 {[%emt 0:02:11]} (17... Nf6 $14) 18. Ne4 {[%emt 0:00:45]} Bxe5 {[%emt 0:00:37]} (18... Bc7 $16) 19. dxe5 $18 {[%emt 0:00:21]} ({Worse is} 19. Bxe5 Bc6 $11) 19... Qe7 {[%emt 0:00:44]} 20. c3 {[%emt 0:00:35]} Bc6 {[%emt 0:00:33]} 21. Bb1 {[%emt 0:00:06]} Rd7 {[%emt 0:01:04]} 22. Qh5 {[%emt 0:01:05] Black must now prevent Bh4.} Rd5 {[%emt 0:00:37]} 23. axb5 {[%emt 0:00:45]} axb5 {[%emt 0:00:02]} 24. Rxd5 {[%emt 0:00:57]} Bxd5 {[%emt 0:00:29]} 25. Bh4 {[%emt 0:00:27]} Qc7 {[%emt 0:00:54]} 26. Nf6+ {[%emt 0:00:24]} Nxf6 $1 {[%emt 0:00:10]} 27. exf6 {[%emt 0:00:50]} Qf4 {[%emt 0:00:02]} 28. fxg7 {[%emt 0:00:33] The board is on fire.} Kxg7 {[%emt 0:00:07]} 29. Bg3 {[%emt 0:00:06]} Qg5 {[%emt 0:00:15]} 30. Qe2 {[%emt 0:00:01] Hoping for h4.} Nc6 {[%emt 0:01:13] [#]} (30... f5 $14) 31. f4 $1 $40 {[%emt 0:00:02][%cal Bf2f4,Bf4f5][%mdl 160] White has strong attack.} Qf6 {[%emt 0:00:01]} (31... Qe7 {was called for.} 32. Qg4+ Kh8) 32. f5 {[%emt 0:00:01]} e5 {[%emt 0:00:01]} 33. Qh5 {[%emt 0:00:01]} (33. Qf2 $142 {Bh4 is the strong threat.} Ra8 34. Bh4) 33... Kh8 $2 {[%emt 0:01:00]} (33... Qg5 34. f6+ Kh8 35. Qxg5 hxg5) 34. Bh4 $2 {[%emt 0:00:08]} (34. Rd1 $18 {and the rest is easy.}) 34... Qg7 $16 {[%emt 0:00:01][%csl Gd5][%cal Rg7g2]} 35. Qe2 {[%emt 0:00:28]} Rg8 $2 {[%emt 0:00:09]} (35... f6 $16) 36. Be4 $18 {[%emt 0:00:11]} Bxe4 {[%emt 0:01:02]} 37. Qxe4 {[%emt 0:00:02]} Qg4 $2 {[%emt 0:00:19]} (37... Nb8 38. Rd1 f6) 38. Bf6+ {[%emt 0:00:02]} Kh7 {[%emt 0:00:01]} 39. Qxc6 {[%emt 0:00:14]} e4 {[%emt 0:00:01] [#]} 40. g3 $1 {[%emt 0:00:16] Threatens to win with Qd7.} e3 {[%emt 0:00:59]} 41. Qd5 {[%emt 0:00:01]} Qh5 {[%emt 0:00:05]} 42. Qf3 {[%emt 0:00:18]} Qh3 {[%emt 0:01:03]} 43. Qxe3 {[%emt 0:00:02]} b4 {[%emt 0:00:03]} 44. cxb4 {[%emt 0:00:10]} c3 {[%emt 0:00:02]} 45. Bxc3 {[%emt 0:00:10]} h5 {[%emt 0:00:14]} 46. Bd2 {[%emt 0:00:19] Weighted Error Value: White=0.37/Black=0.84} ({Inferior is} 46. Qe7 Rxg3+ 47. hxg3 Qxg3+ 48. Kh1 Qh3+ 49. Kg1 Qg3+ 50. Kh1 Qh3+ 51. Kg1 Qg3+ $11) 1-0

[Event "Czech Open-Rapid 2022"]
[Site "Pardubice"]
[Date "2022.07.21"]
[Round "6.10"]
[White "Aradhya, Garg"]
[Black "Rasik, Vitezslav"]
[Result "1/2-1/2"]
[ECO "B08"]
[WhiteElo "2229"]
[BlackElo "2419"]
[Annotator "TA"]
[PlyCount "61"]
[EventDate "2022.07.20"]
[EventType "swiss"]
[EventCountry "CZE"]
[SourceTitle "playchess.com"]
[Source "ChessBase"]
[SourceQuality "1"]
[TimeControl "1200+10"]

{[%evp 11,61,6,15,0,0,6,0,-42,-42,-27,76,0,-12,-12,9,-34,-27,-39,0,0,0,0,0,0,0,0,9,0,10,2,0,0,42,11,27,0,1,0,0,0,0,0,0,0,-4,-8,0,-5,-7,-8,0,-9]} 1. d4 {[%emt 0:00:02]} d6 {[%emt 0:00:01]} 2. Nf3 {[%emt 0:00:02]} g6 {[%emt 0:00:02]} 3. e4 {[%emt 0:00:15]} Nf6 {[%emt 0:00:03]} 4. Nc3 {[%emt 0:00:01]} Bg7 {[%emt 0:00:02]} 5. h3 {[%emt 0:00:02]} O-O {[%emt 0:00:04]} 6. Be3 {[%emt 0:00:02]} b6 {[%emt 0:00:20]} 7. e5 {[%emt 0:00:45] B08: Pirc Defence: Classical System.} Nfd7 {[%emt 0:00:26][%cal Rd6e5]} 8. Bc4 {[%emt 0:01:55] Threatening e6.} dxe5 {[%emt 0:03:09]} 9. dxe5 {[%emt 0:00:02]} (9. Qe2 $5 {[%cal Rd4e5]}) 9... Nxe5 {[%emt 0:01:58]} 10. Nxe5 {[%emt 0:00:04]} Bxe5 {[%emt 0:00:02] [#]} (10... Qxd1+ $11 11. Rxd1 Bxe5) 11. Qf3 $146 {[%emt 0:00:11] White is more active.} (11. Bxf7+ $1 $16 Kg7 12. Qd5 Qxd5 13. Bxd5) ({Predecessor:} 11. O-O Bb7 12. Qxd8 Rxd8 13. Rad1 Nc6 14. Bb3 e6 15. Bc1 Ne7 16. Ne2 Nf5 17. g3 {1-0 (31) Sharp,D (1328)-Harrison,M Palmerston North 2018}) 11... c6 $11 {[%emt 0:00:41]} 12. O-O {[%emt 0:00:25]} Qc7 {[%emt 0:00:48]} 13. Nd5 {[%emt 0:00:57]} cxd5 {[%emt 0:01:18]} 14. Bxd5 {[%emt 0:00:03] [#]} Nc6 $1 {[%emt 0:00:18]} 15. Bxc6 {[%emt 0:00:02]} Rb8 {[%emt 0:00:02]} 16. c3 {[%emt 0:01:10]} Bb7 {[%emt 0:01:43]} 17. Bxb7 {[%emt 0:00:02]} Qxb7 {[%emt 0:00:03]} 18. Qxb7 {[%emt 0:00:08]} Rxb7 {[%emt 0:00:02]} 19. Rfd1 {[%emt 0:00:01]} b5 {[%emt 0:00:49]} 20. Rd5 {[%emt 0:00:27]} Bd6 {[%emt 0:01:18]} 21. g4 {[%emt 0:00:04]} f5 {[%emt 0:00:25]} 22. Bh6 {[%emt 0:00:33]} Rf6 {[%emt 0:00:59]} 23. Re1 {[%emt 0:00:07] Threatens to win with g5.} Kf7 {[%emt 0:00:49] The position is equal.} 24. Kg2 {[%emt 0:00:58]} Re6 {[%emt 0:00:31]} 25. Red1 {[%emt 0:00:28]} Re5 {[%emt 0:00:17]} 26. Rxe5 {[%emt 0:01:03]} Bxe5 {[%emt 0:00:01]} 27. a3 {[%emt 0:00:02]} Ke6 {[%emt 0:00:42]} 28. Be3 {[%emt 0:00:19]} a6 {[%emt 0:00:18]} 29. Rd8 {[%emt 0:00:45]} Rb8 {[%emt 0:00:30] Prevents Ra8.} 30. Rd2 {[%emt 0:00:08]} Rb7 {[%emt 0:00:01]} 31. Rd8 {[%emt 0:00:24] Weighted Error Value: White=0.14 (very precise) /Black=0.16 (very precise)} 1/2-1/2